bitfinex/quotes_SOLUSD_20251207
["timestamp","ask_amount","ask_price","bid_price","bid_amount"]
[1765128203975,8.80994492,133.77,133.66,7.48166881]
[1765128204166,9.79563042,133.72,133.66,16.308864]
[1765128204368,9.79563042,133.72,133.66,24.848864]
[1765128204564,0.68,133.71,133.66,8.54]
[1765128204761,9.79563042,133.7,133.65,8.54]
[1765128204962,9.79563042,133.68,133.62,7.48344821]
[1765128205168,9.79563042,133.68,133.63,7.48324782]
[1765128205375,0.68,133.67,133.63,16.308864]
[1765128205681,0.68,133.67,133.61,27.25089065]
[1765128205682,9.79563042,133.66,133.61,7.48439396]
[1765128205863,17.27736889,133.66,133.6,7.48491153]
[1765128206058,0.68,133.65,133.6,16.02491153]
[1765128206264,9.79563042,133.64,133.6,8.54]
[1765128206477,9.79563042,133.64,133.58,7.48603784]
[1765128206680,9.79563042,133.62,133.53,0.7]
[1765128206989,9.79563042,133.6,133.53,0.2]
[1765128207172,9.79563042,133.56,133.53,0.2]
[1765128207374,0.68,133.59,133.53,0.2]
[1765128207587,9.79563042,133.55,133.53,0.2]
[1765128207759,0.68,133.59,133.53,0.2]
[1765128207760,9.79563042,133.57,133.53,0.2]
[1765128208181,9.79563042,133.55,133.53,0.2]
[1765128208700,0.68,133.54,133.5,0.2]
[1765128208995,9.79563042,133.52,133.5,0.2]
[1765128209160,9.79563042,133.52,133.45,7.49295125]
[1765128209355,9.79563042,133.49,133.43,7.49454766]
[1765128209666,9.79563042,133.47,133.4,9.79563042]
[1765128209862,9.79563042,133.47,133.41,7.49568997]
[1765128210167,0.68,133.46,133.41,7.49568997]
[1765128210483,0.68,133.46,133.41,26.23491491]
[1765128210654,0.68,133.46,133.42,16.308864]
[1765128210858,8.80994492,133.53,133.44,9.79563042]
[1765128211058,0.68,133.56,133.48,9.79563042]
[1765128211360,0.68,133.55,133.49,9.79563042]
[1765128211561,0.68,133.55,133.48,24.868864]
[1765128211973,0.68,133.55,133.49,7.49119784]
[1765128212175,0.68,133.56,133.5,9.79563042]
[1765128212486,9.79563042,133.58,133.51,24.868864]
[1765128212669,0.68,133.57,133.51,16.308864]
[1765128212874,0.68,133.57,133.52,9.79563042]
[1765128213192,0.68,133.57,133.51,16.308864]
[1765128213396,0.68,133.57,133.52,9.79563042]
[1765128213706,0.68,133.57,133.51,16.308864]
[1765128213863,0.68,133.57,133.49,42.52805644]
[1765128214060,10.47563042,133.57,133.49,60.88368686]
[1765128214489,0.68,133.56,133.49,60.88368686]
[1765128215000,10.47563042,133.56,133.49,60.88368686]
[1765128215291,10.47563042,133.56,133.51,9.79563042]
[1765128215292,0.68,133.56,133.51,9.79563042]
[1765128215494,0.68,133.56,133.52,9.79563042]
[1765128215676,0.68,133.56,133.51,9.79563042]
[1765128215873,7.48451501,133.61,133.53,9.79563042]
[1765128216200,0.68,133.59,133.52,52.31779578]
[1765128216492,0.68,133.59,133.53,9.79563042]
[1765128216699,0.68,133.59,133.55,9.79563042]
[1765128216898,0.68,133.59,133.52,43.23216536]
[1765128217200,0.68,133.59,133.52,60.87779578]
[1765128217391,10.47563042,133.62,133.55,9.79563042]
[1765128217590,0.68,133.61,133.56,9.79563042]
[1765128217761,9.79563042,133.59,133.52,51.08216536]
[1765128217966,9.79563042,133.59,133.52,60.87779578]
[1765128218163,16.04388919,133.63,133.53,9.79563042]
[1765128218467,0.68,133.61,133.54,0.71]
[1765128218674,0.68,133.61,133.55,9.79563042]
[1765128218882,8.56,133.63,133.58,9.79563042]
[1765128219093,0.68,133.63,133.58,9.79563042]
[1765128219270,0.68,133.63,133.59,26.10449442]
[1765128219477,0.68,133.66,133.59,26.81449442]
[1765128219671,9.79563042,133.65,133.58,9.79563042]
[1765128219873,0.68,133.7,133.64,17.27842]
[1765128220087,0.68,133.7,133.64,34.74976353]
[1765128220269,0.68,133.7,133.64,42.49862753]
[1765128220460,0.68,133.7,133.65,9.79563042]
[1765128220665,0.68,133.7,133.64,23.79165358]
[1765128220666,0.68,133.7,133.66,9.79563042]
[1765128220966,0.68,133.7,133.67,9.79563042]
[1765128221168,0.68,133.73,133.68,9.79563042]
[1765128221493,0.68,133.73,133.66,8.56]
[1765128221674,0.68,133.73,133.67,9.79563042]
[1765128221995,0.68,133.73,133.69,9.79563042]
[1765128222167,0.68,133.75,133.7,9.79563042]
[1765128222477,0.68,133.75,133.71,9.79563042]
[1765128222676,0.68,133.75,133.69,9.79563042]
[1765128223065,9.79563042,133.74,133.67,33.58560461]
[1765128223564,0.68,133.73,133.67,33.58560461]
[1765128223777,0.68,133.73,133.68,9.79563042]
[1765128224295,0.68,133.73,133.68,17.27613659]
[1765128224592,0.68,133.73,133.67,23.78986183]
[1765128224895,0.68,133.73,133.68,17.27617439]
[1765128225269,0.68,133.73,133.69,9.79563042]
[1765128225470,0.68,133.73,133.68,8.56]
[1765128225669,0.68,133.73,133.68,25.83595764]
[1765128225870,8.15783446,133.73,133.68,8.56]
[1765128226069,0.68,133.73,133.68,25.83588223]
[1765128226271,0.68,133.75,133.68,16.75025181]
[1765128226571,0.68,133.75,133.69,9.79563042]
[1765128226972,0.68,133.75,133.71,9.79563042]
[1765128227281,0.68,133.75,133.7,18.35563042]
[1765128227484,10.47563042,133.77,133.7,18.35563042]
[1765128227686,0.68,133.76,133.7,18.35563042]
[1765128228073,0.68,133.76,133.71,17.2745026]
[1765128228278,0.68,133.76,133.71,7.47887218]
[1765128228873,0.68,133.76,133.71,17.2745026]
[1765128229899,9.79563042,133.75,133.68,7.48007998]
[1765128230108,9.79563042,133.75,133.68,18.33563042]
[1765128230402,9.79563042,133.73,133.67,16.308864]
[1765128230806,10.47563042,133.72,133.67,16.308864]
[1765128231310,0.68,133.71,133.67,23.78987156]
[1765128231812,9.79563042,133.74,133.67,52.28827747]
[1765128232009,0.68,133.73,133.67,52.97827747]
[1765128232305,10.47563042,133.75,133.68,9.79563042]
[1765128232495,0.68,133.75,133.69,18.33563042]
[1765128232805,0.68,133.74,133.69,18.33563042]
[1765128232982,0.68,133.74,133.69,8.54]
[1765128233187,0.68,133.74,133.7,7.47943156]
[1765128233802,24.8437879,133.8,133.71,0.69]
[1765128234004,8.80994492,133.83,133.73,16.308864]
[1765128234336,7.46993351,133.87,133.78,16.308864]
[1765128234337,0.68,133.85,133.78,16.308864]
[1765128234488,0.68,133.85,133.79,9.79563042]
[1765128234688,10.47563042,133.85,133.79,8.54]
[1765128234882,0.68,133.85,133.79,9.79563042]
[1765128235307,0.68,133.85,133.79,17.27003059]
[1765128235811,0.68,133.85,133.79,35.95603103]
[1765128236130,0.69,133.87,133.81,9.79563042]
[1765128236409,0.69,133.87,133.81,8.54]
[1765128236715,10.48563042,133.87,133.81,8.54]
[1765128236904,0.69,133.87,133.79,16.01440017]
[1765128237095,9.79563042,133.85,133.79,7.47440017]
[1765128237295,7.56949119,133.88,133.83,9.79563042]
[1765128237296,0.1,133.88,133.83,9.79563042]
[1765128237509,0.69,133.87,133.82,16.308864]
[1765128237701,9.79563042,133.86,133.79,34.70040061]
[1765128238214,0.69,133.87,133.8,9.79563042]
[1765128238416,0.69,133.87,133.8,19.03563042]
[1765128238594,0.69,133.87,133.8,18.33563042]
[1765128238794,0.1,133.88,133.82,16.308864]
[1765128238989,0.1,133.88,133.82,26.10449442]
[1765128239191,0.1,133.88,133.84,7.47160789]
[1765128239615,0.1,133.88,133.85,10.49563042]
[1765128240000,0.1,133.88,133.85,26.80449442]
[1765128240191,0.1,133.88,133.85,17.008864]
[1765128240390,0.1,133.88,133.86,8.54]
[1765128240689,0.1,133.88,133.86,10.49563042]
[1765128240893,0.1,133.88,133.85,24.848864]
[1765128240894,0.69,133.98,133.88,16.308864]
[1765128241091,27.18975755,134.05,133.92,16.308864]
[1765128241291,34.64966057,134.05,133.94,7.46602956]
[1765128241501,9.79563042,133.99,133.94,7.46602956]
[1765128241689,34.64966057,134.05,133.94,7.46602956]
[1765128241690,9.79563042,133.98,133.94,7.46602956]
[1765128241896,34.64966057,134.05,133.9,8.54]
[1765128241897,9.79563042,134.0,133.9,8.54]
[1765128242111,72.94917567,134.05,133.93,7.46652829]
[1765128242112,9.79563042,133.97,133.93,7.46652829]
[1765128242302,0.1,134.07,133.93,7.46652829]
[1765128242303,0.1,134.07,133.93,26.13303343]
[1765128242506,7.45045447,134.22,134.05,9.79563042]
[1765128242709,3.89766523,134.19,134.07,0.98650387]
[1765128242919,8.58,134.2,134.09,16.308864]
[1765128243223,7.45267551,134.18,134.08,17.29536787]
[1765128243429,7.45267551,134.18,134.07,8.44512741]
[1765128243627,0.69,134.17,134.07,8.44512741]
[1765128243920,0.69,134.17,134.08,0.98650387]
[1765128244228,0.69,134.17,134.1,0.65837887]
[1765128244391,0.69,134.17,134.08,0.65837887]
[1765128244590,0.69,134.17,134.04,0.65837887]
[1765128244790,16.308864,134.15,134.05,0.65837887]
[1765128245119,10.41080944,134.08,134.05,0.65837887]
[1765128245425,8.58,134.14,134.02,1.35837887]
[1765128245426,7.45545366,134.13,134.02,1.35837887]
[1765128245716,26.78408782,134.13,133.99,7.46282146]
[1765128245914,16.308864,134.1,133.97,0.65837887]
[1765128246122,16.308864,134.1,133.93,18.6661306]
[1765128246123,8.80994492,134.09,134.0,0.65837887]
[1765128246413,18.09994492,134.09,134.0,0.65837887]
[1765128246603,10.41080944,134.02,133.99,0.65837887]
[1765128246800,10.41080944,134.0,133.98,0.65837887]
[1765128247000,9.49994492,134.08,133.93,8.16645659]
[1765128247001,11.10080944,133.99,133.93,0.65837887]
[1765128247306,11.10080944,133.99,133.94,0.65837887]
[1765128247307,0.69,133.99,133.94,0.65837887]
[1765128247517,8.6,134.03,133.95,0.65837887]
[1765128247711,8.15189331,134.02,133.94,0.65837887]
[1765128247921,8.15189331,134.02,133.93,0.65837887]
[1765128248220,0.69,134.06,133.99,0.65837887]
[1765128248393,8.80994492,134.09,134.01,0.65837887]
[1765128248597,8.80994492,134.09,133.95,8.80994492]
[1765128248598,10.41080944,134.04,133.99,16.96724287]
[1765128248795,0.69,134.08,133.99,16.308864]
[1765128249096,9.29,134.1,134.01,0.65837887]
[1765128249403,7.45906619,134.07,134.0,0.65837887]
[1765128249604,10.41080944,134.03,133.98,16.96724287]
[1765128249917,10.41080944,134.05,134.01,0.65837887]
[1765128250499,10.41080944,134.03,133.99,0.65837887]
[1765128250796,26.10604165,134.07,134.0,0.65837887]
[1765128250994,7.45906619,134.07,133.98,16.96724287]
[1765128251196,7.45906619,134.07,134.0,0.65837887]
[1765128252120,8.14906619,134.07,134.0,0.65837887]
[1765128252322,0.69,134.06,133.99,1.15837887]
[1765128252620,10.41080944,134.04,133.99,0.65837887]
[1765128252829,10.41080944,134.05,134.0,0.65837887]
[1765128252996,10.41080944,134.03,133.99,0.65837887]
[1765128253207,10.41080944,134.0,133.93,0.65837887]
[1765128253513,37.29395092,134.07,133.93,1.35837887]
[1765128253818,10.41080944,134.04,134.0,0.65837887]
[1765128254530,10.41080944,134.01,133.98,0.65837887]
[1765128254830,10.41080944,133.99,133.94,0.65837887]
[1765128255032,10.41080944,133.96,133.94,0.65837887]
[1765128255202,10.41080944,133.95,133.93,0.65837887]
[1765128255405,10.41080944,133.94,133.9,0.65837887]
[1765128255606,10.41080944,133.92,133.91,0.65837887]
[1765128255825,10.41080944,133.92,133.86,0.7]
[1765128255826,10.41080944,133.92,133.86,0.65837887]
[1765128256028,10.41080944,133.87,133.85,0.65837887]
[1765128256229,0.69,133.91,133.85,0.65837887]
[1765128256406,10.41080944,133.87,133.85,0.99999999]
[1765128256611,10.41080944,133.86,133.85,0.99999999]
[1765128256855,10.41080944,133.87,133.85,0.99999999]
[1765128257025,10.41080944,133.86,133.81,0.7]
[1765128257228,8.6,133.94,133.8,0.99999999]
[1765128257229,10.41080944,133.83,133.8,0.99999999]
[1765128257437,10.41080944,133.95,133.71,97.13820276]
[1765128257438,8.6,133.88,133.76,0.99999999]
[1765128257602,85.41080944,133.95,133.78,0.99999999]
[1765128257603,26.1447673,133.87,133.78,0.99999999]
[1765128257803,8.6,133.94,133.84,0.99999999]
[1765128258007,10.41080944,133.88,133.84,0.99999999]
[1765128258331,10.41080944,133.87,133.84,0.99999999]
[1765128258537,10.41080944,133.88,133.84,0.99999999]
[1765128258906,7.46835916,133.9,133.84,0.99999999]
[1765128259115,37.32414218,133.97,133.84,0.99999999]
[1765128259116,7.46157289,134.02,133.89,0.99999999]
[1765128259342,10.41080944,133.94,133.89,1.69999999]
[1765128259541,10.41080944,133.93,133.89,1.69999999]
[1765128259714,10.41080944,133.94,133.89,1.69999999]
[1765128260034,10.41080944,133.91,133.89,0.99999999]
[1765128260230,10.41080944,133.93,133.89,0.99999999]
[1765128260430,10.41080944,133.94,133.91,0.99999999]
[1765128260634,10.41080944,133.94,133.87,10.41080944]
[1765128260635,10.41080944,133.92,133.87,0.99999999]
[1765128260938,10.41080944,133.9,133.88,0.99999999]
[1765128261145,10.41080944,133.92,133.88,8.46915197]
[1765128261520,10.41080944,133.92,133.88,9.18915197]
[1765128262135,10.41080944,133.91,133.88,8.46924168]
[1765128262337,0.65,133.95,133.88,8.46924168]
[1765128262338,10.41080944,133.92,133.88,8.46924168]
[1765128262740,9.09079172,133.91,133.87,25.90886399]
[1765128262924,26.779693,133.95,133.88,0.99999999]
[1765128263130,9.09079172,133.92,133.88,8.46915346]
[1765128263318,9.09079172,133.93,133.89,0.99999999]
[1765128263520,37.30652953,134.03,133.87,24.908864]
[1765128263521,9.09079172,133.91,133.87,0.99999999]
[1765128263833,9.09079172,133.94,133.91,0.99999999]
[1765128264140,9.09079172,133.94,133.89,0.99999999]
[1765128264338,9.09079172,133.9,133.87,0.99999999]
[1765128264637,9.09079172,133.88,133.85,0.99999999]
[1765128264952,9.09079172,133.88,133.84,8.6]
[1765128264953,6.33563726,133.88,133.84,8.6]
[1765128265133,18.67040144,133.91,133.85,0.99999999]
[1765128265330,6.33563726,133.87,133.85,0.99999999]
[1765128265532,18.67040144,133.91,133.85,0.99999999]
[1765128265533,7.46825989,133.9,133.85,0.99999999]
[1765128265722,6.33563726,133.87,133.85,0.99999999]
[1765128265920,6.33563726,133.87,133.82,17.07242959]
[1765128266122,6.33563726,133.85,133.82,17.07242959]
[1765128266340,6.33563726,133.83,133.79,16.0743527]
[1765128266537,6.33563726,133.83,133.79,9.59999999]
[1765128266714,6.33563726,133.81,133.79,0.99999999]
[1765128266917,6.33563726,133.81,133.78,0.99999999]
[1765128267124,79.78907309,133.9,133.79,0.99999999]
[1765128267125,6.33563726,133.82,133.79,0.99999999]
[1765128267341,6.33563726,133.82,133.78,0.99999999]
[1765128267737,53.65016347,133.9,133.76,0.99999999]
[1765128267738,6.33563726,133.8,133.76,0.99999999]
[1765128267922,6.33563726,133.78,133.74,0.99999999]
[1765128268123,6.33563726,133.78,133.75,0.99999999]
[1765128268329,6.33563726,133.8,133.77,0.99999999]
[1765128268526,6.33563726,133.81,133.77,0.99999999]
[1765128268726,6.33563726,133.82,133.78,0.99999999]
[1765128268925,6.33563726,133.85,133.8,0.99999999]
[1765128269126,6.33563726,133.84,133.81,7.47328301]
[1765128269451,6.33563726,133.85,133.82,0.99999999]
[1765128269623,6.33563726,133.84,133.8,7.47373504]
[1765128269829,6.33563726,133.85,133.82,0.99999999]
[1765128270251,0.65,133.88,133.82,0.72]
[1765128270654,6.33563726,133.89,133.83,17.30886399]
[1765128270953,6.33563726,133.9,133.86,0.99999999]
[1765128271337,8.11615821,133.94,133.88,0.99999999]
[1765128271553,6.33563726,133.91,133.87,0.72]
[1765128271936,6.33563726,133.91,133.86,8.47028399]
[1765128272140,7.46551822,133.95,133.89,0.99999999]
[1765128272351,6.33563726,133.93,133.89,0.99999999]
[1765128272738,0.65,133.98,133.91,0.99999999]
[1765128273047,6.33563726,133.95,133.91,0.99999999]
[1765128273239,6.33563726,133.96,133.92,0.99999999]
[1765128273436,6.33563726,133.94,133.91,0.99999999]
[1765128273859,6.33563726,133.93,133.9,0.99999999]
[1765128274059,6.33563726,133.92,133.9,0.99999999]
[1765128274245,6.33563726,133.92,133.89,0.99999999]
[1765128274557,34.93345936,133.98,133.87,8.62]
[1765128274558,6.33563726,133.9,133.87,16.308864]
[1765128274760,0.65,133.91,133.86,9.61999999]
[1765128274946,6.33563726,133.91,133.87,0.99999999]
[1765128275259,6.33563726,133.91,133.84,0.99999999]
[1765128275260,6.33563726,133.88,133.84,0.99999999]
[1765128275452,0.65,133.93,133.85,0.99999999]
[1765128275664,6.33563726,133.9,133.86,0.99999999]
[1765128275847,6.33563726,133.9,133.87,0.99999999]
[1765128276040,6.33563726,133.9,133.88,0.99999999]
[1765128276466,6.33563726,133.91,133.88,0.99999999]
[1765128276641,6.33563726,133.92,133.88,0.99999999]
[1765128276960,6.33563726,133.92,133.88,1.71999999]
[1765128277263,6.33563726,133.9,133.87,8.6]
[1765128277436,6.33563726,133.9,133.87,9.59999999]
[1765128277635,6.33563726,133.9,133.85,17.028864]
[1765128277636,6.33563726,133.88,133.85,0.99999999]
[1765128278055,6.33563726,133.89,133.86,0.99999999]
[1765128278255,6.33563726,133.9,133.87,8.4699335]
[1765128278465,6.33563726,133.88,133.86,0.99999999]
[1765128278762,6.98563726,133.92,133.84,7.47120714]
[1765128279063,6.33563726,133.85,133.8,0.99999999]
[1765128279268,6.33563726,133.83,133.8,9.19332262]
[1765128279445,6.33563726,133.84,133.8,25.50218662]
[1765128279773,6.33563726,133.83,133.8,1.71999999]
[1765128280069,6.33563726,133.81,133.79,0.99999999]
[1765128280241,6.33563726,133.82,133.79,8.47424343]
[1765128280586,8.11944431,133.88,133.81,0.99999999]
[1765128280867,6.33563726,133.82,133.77,0.99999999]
[1765128281045,6.33563726,133.8,133.76,17.0956433]
[1765128281253,6.33563726,133.77,133.74,0.99999999]
[1765128281754,6.33563726,133.79,133.76,17.30886399]
[1765128282062,6.33563726,133.8,133.76,16.308864]
[1765128282370,7.47272455,133.82,133.78,0.99999999]
[1765128282562,6.33563726,133.81,133.77,0.99999999]
[1765128282760,9.10603786,133.81,133.78,0.99999999]
[1765128283665,9.10603786,133.81,133.77,0.72]
[1765128283666,0.65,133.81,133.77,7.47548876]
[1765128284045,9.10603786,133.8,133.76,17.30886399]
[1765128284245,9.10603786,133.8,133.76,16.308864]
[1765128284448,9.75603786,133.79,133.76,16.308864]
[1765128284769,9.10603786,133.78,133.74,8.47677007]
[1765128285070,0.65,133.81,133.72,0.99999999]
[1765128285071,9.10603786,133.76,133.72,0.99999999]
[1765128285275,9.10603786,133.73,133.7,0.99999999]
[1765128285479,7.47440017,133.79,133.72,0.99999999]
[1765128285771,9.10603786,133.78,133.75,0.99999999]
[1765128285972,9.10603786,133.79,133.76,0.99999999]
[1765128286142,7.47342775,133.81,133.76,0.99999999]
[1765128286346,0.65,133.87,133.78,0.99999999]
[1765128286569,25.14698851,134.04,133.82,0.99999999]
[1765128286570,7.46976675,133.88,133.82,0.99999999]
[1765128286741,9.10603786,133.87,133.82,0.99999999]
[1765128286946,9.10603786,133.85,133.81,0.99999999]
[1765128287170,0.65,133.87,133.81,0.99999999]
[1765128287369,0.65,133.87,133.82,0.99999999]
[1765128287370,9.10603786,133.86,133.82,0.99999999]
[1765128287565,0.65,133.87,133.81,0.99999999]
[1765128287760,9.75603786,133.87,133.83,0.99999999]
[1765128288270,9.10603786,133.87,133.83,0.99999999]
[1765128288768,9.10603786,133.87,133.84,0.99999999]
[1765128288947,9.10603786,133.87,133.82,42.46334467]
[1765128288948,9.10603786,133.87,133.83,0.99999999]
[1765128289365,0.69,133.92,133.85,0.99999999]
[1765128289690,9.10603786,133.9,133.86,7.47049155]
[1765128289848,9.10603786,133.89,133.85,8.470896]
[1765128290048,9.10603786,133.89,133.85,7.47089601]
[1765128290283,9.10603786,133.89,133.85,9.160896]
[1765128290450,9.10603786,133.89,133.85,27.1485202]
[1765128290656,9.10603786,133.89,133.86,0.99999999]
[1765128290858,9.10603786,133.89,133.85,8.470896]
[1765128291054,41.20899857,134.02,133.86,17.99886399]
[1765128291283,9.10603786,133.9,133.87,0.99999999]
[1765128291656,9.10603786,133.9,133.87,8.4697985]
[1765128291979,9.10603786,133.9,133.88,0.99999999]
[1765128292556,9.10603786,133.89,133.84,0.99999999]
[1765128292886,9.10603786,133.89,133.85,0.99999999]
[1765128293190,0.69,133.9,133.84,0.99999999]
[1765128293191,9.10603786,133.87,133.84,0.99999999]
[1765128293359,9.10603786,133.87,133.83,8.47177099]
[1765128293552,9.10603786,133.87,133.85,0.99999999]
[1765128293957,18.66736592,133.93,133.86,0.69]
[1765128294156,9.10603786,133.92,133.87,0.99999999]
[1765128294586,0.69,133.94,133.88,0.69]
[1765128294757,0.69,134.0,133.9,9.10603786]
[1765128294956,9.10603786,134.0,133.95,0.99999999]
[1765128295381,9.10603786,133.98,133.95,0.99999999]
[1765128295984,9.10603786,133.97,133.93,9.15618186]
[1765128296155,9.79603786,133.97,133.93,0.99999999]
[1765128296351,26.11355666,134.03,133.91,0.99999999]
[1765128296352,9.10603786,133.94,133.91,0.99999999]
[1765128296581,0.69,133.96,133.9,0.99999999]
[1765128296757,9.10603786,133.93,133.89,0.99999999]
[1765128296964,9.10603786,133.91,133.87,0.99999999]
[1765128297164,9.10603786,133.89,133.86,0.99999999]
[1765128297490,9.10603786,133.89,133.87,0.99999999]
[1765128297654,9.10603786,133.88,133.85,9.29]
[1765128297858,9.10603786,133.88,133.85,9.59999999]
[1765128298080,9.10603786,133.89,133.86,0.99999999]
[1765128298278,9.10603786,133.88,133.85,10.28999999]
[1765128298471,9.10603786,133.88,133.86,0.99999999]
[1765128298778,26.82695765,133.91,133.85,1.68999999]
[1765128298956,9.10603786,133.88,133.86,0.99999999]
[1765128299157,9.10603786,133.88,133.85,1.68999999]
[1765128299352,9.10603786,133.88,133.86,0.99999999]
[1765128299585,16.57494654,133.89,133.85,0.99999999]
[1765128299791,16.57494654,133.89,133.86,0.99999999]
[1765128300082,9.10603786,133.88,133.85,0.99999999]
[1765128300262,8.6,133.94,133.86,0.99999999]
[1765128300263,9.10603786,133.9,133.86,0.99999999]
[1765128300467,9.10603786,133.92,133.88,0.99999999]
[1765128300878,9.10603786,133.93,133.89,1.66999999]
[1765128301179,9.10603786,133.94,133.9,9.57999999]
[1765128301357,9.10603786,133.93,133.9,8.58]
[1765128301560,9.10603786,133.94,133.91,0.99999999]
[1765128301855,7.46514261,133.96,133.94,0.99999999]
[1765128301856,9.10603786,133.96,133.94,0.99999999]
[1765128302063,9.10603786,133.95,133.91,0.99999999]
[1765128302385,0.71,134.0,133.93,0.99999999]
[1765128302561,16.77157289,134.02,133.95,0.99999999]
[1765128302760,9.10603786,133.99,133.96,0.99999999]
[1765128302967,9.10603786,133.97,133.94,0.99999999]
[1765128303172,9.10603786,133.97,133.94,16.308864]
[1765128303370,9.10603786,134.02,133.96,0.99999999]
[1765128303573,0.71,134.05,134.0,7.46268656]
[1765128303890,7.45934656,134.06,134.01,0.99999999]
[1765128304088,7.45885042,134.07,134.01,0.99999999]
[1765128304296,19.35592877,134.08,134.0,7.46268656]
[1765128304297,9.10603786,134.06,134.02,1.66999999]
[1765128304470,9.10603786,134.03,134.01,0.99999999]
[1765128304664,6.3177021,134.07,134.02,0.99999999]
[1765128304862,26.10047812,134.1,134.03,0.99999999]
[1765128305165,6.3177021,134.07,134.03,1.66999999]
[1765128305369,6.3177021,134.06,134.04,0.99999999]
[1765128305571,13.77652923,134.07,134.03,0.99999999]
[1765128305771,6.3177021,134.04,134.0,0.99999999]
[1765128305967,6.3177021,134.05,134.01,0.67]
[1765128306283,6.3177021,134.02,133.99,9.57999999]
[1765128306796,6.3177021,134.0,133.97,1.66999999]
[1765128306973,6.3177021,133.99,133.96,0.99999999]
[1765128307287,0.71,134.05,133.97,0.99999999]
[1765128307497,6.3177021,134.01,133.97,0.99999999]
[1765128307682,0.71,134.06,133.96,0.67]
[1765128307683,13.78046929,134.0,133.96,2.16999999]
[1765128307886,13.78046929,134.0,133.96,0.67]
[1765128308118,6.3177021,133.99,133.96,0.67]
[1765128308264,6.3177021,133.97,133.94,0.99999999]
[1765128308468,6.3177021,133.95,133.9,8.13824847]
[1765128308776,6.3177021,133.92,133.9,0.99999999]
[1765128309174,7.0277021,133.91,133.87,0.99999999]
[1765128309368,6.3177021,133.9,133.87,17.30886399]
[1765128309698,6.3177021,133.88,133.87,0.99999999]
[1765128310196,6.3177021,133.88,133.86,0.99999999]
[1765128310503,7.46890334,133.89,133.87,0.99999999]
[1765128310693,9.80722822,133.88,133.85,0.99999999]
[1765128310897,9.09722822,133.86,133.85,0.99999999]
[1765128311374,9.80722822,133.86,133.85,0.99999999]
[1765128311574,9.09722822,133.86,133.85,0.99999999]
[1765128311782,8.17971412,133.88,133.85,0.99999999]
[1765128312000,9.09722822,133.86,133.85,0.99999999]
[1765128312197,9.09722822,133.87,133.85,0.99999999]
[1765128312694,9.09722822,133.88,133.85,0.99999999]
[1765128312873,9.09722822,133.87,133.86,0.99999999]
[1765128313794,9.09722822,133.92,133.9,0.99999999]
[1765128314177,8.17602956,133.94,133.88,0.99999999]
[1765128314178,9.80722822,133.91,133.88,0.99999999]
[1765128314378,9.09722822,133.89,133.88,0.99999999]
[1765128315079,9.09722822,133.89,133.87,0.99999999]
[1765128315288,9.09722822,133.88,133.87,0.99999999]
[1765128315793,8.80994492,133.95,133.87,0.99999999]
[1765128315794,18.6682675,133.92,133.87,0.99999999]
[1765128315968,9.09722822,133.88,133.86,0.99999999]
[1765128316166,9.09722822,133.87,133.86,0.99999999]
[1765128316682,9.80722822,133.87,133.85,0.99999999]
[1765128316869,9.09722822,133.86,133.85,0.99999999]
[1765128317066,9.80722822,133.86,133.82,0.99999999]
[1765128317394,19.38267214,133.89,133.82,8.14256918]
[1765128317578,26.85297438,133.88,133.83,0.99999999]
[1765128317775,26.85297438,133.88,133.82,0.99999999]
[1765128317984,0.71,133.87,133.83,0.99999999]
[1765128318184,7.46953548,133.88,133.82,7.4724733]
[1765128318406,9.09722822,133.85,133.83,0.99999999]
[1765128318699,9.09722822,133.86,133.84,0.99999999]
[1765128319201,9.09722822,133.85,133.84,0.99999999]
[1765128319673,9.09722822,133.85,133.82,0.99999999]
[1765128319874,9.09722822,133.85,133.84,0.99999999]
[1765128320286,9.09722822,133.85,133.81,8.47288953]
[1765128320489,9.09722822,133.85,133.84,0.99999999]
[1765128321294,9.09722822,133.86,133.84,0.99999999]
[1765128321476,9.09722822,133.86,133.84,1.68999999]
[1765128322000,7.46950829,133.88,133.85,0.99999999]
[1765128322001,9.09722822,133.87,133.85,0.99999999]
[1765128322210,9.81722822,133.87,133.86,0.99999999]
[1765128322500,0.72,133.86,133.84,0.99999999]
[1765128322804,10.45147039,133.85,133.81,17.30886399]
[1765128322978,10.45147039,133.82,133.8,0.99999999]
[1765128323179,10.45147039,133.81,133.79,17.03418875]
[1765128323379,10.45147039,133.81,133.79,9.55999999]
[1765128323605,10.45147039,133.8,133.76,8.47589458]
[1765128323807,10.45147039,133.77,133.75,0.99999999]